bitfinex/quotes_BTCUSD_20250328
["timestamp","ask_amount","ask_price","bid_price","bid_amount"]
[1743139404093,0.842594,86308.0,86307.0,0.0001689]
[1743139405017,0.676714,86308.0,86307.0,0.0001689]
[1743139405198,0.842594,86308.0,86307.0,0.0001689]
[1743139405878,0.840594,86308.0,86307.0,0.0001689]
[1743139406081,0.95485164,86308.0,86307.0,0.0001689]
[1743139406687,0.841594,86308.0,86307.0,0.0001689]
[1743139407655,0.841594,86308.0,86307.0,0.0011689]
[1743139408329,0.85976749,86308.0,86307.0,0.0011689]
[1743139415728,0.841594,86308.0,86307.0,0.0011689]
[1743139418955,0.85976754,86308.0,86307.0,0.0011689]
[1743139419244,0.97402518,86308.0,86307.0,0.0011689]
[1743139419627,0.97402518,86308.0,86307.0,9e-07]
[1743139420395,0.85976754,86308.0,86307.0,9e-07]
[1743139420636,0.85952754,86308.0,86307.0,9e-07]
[1743139422432,0.624036,86300.0,86299.0,0.000169]
[1743139422619,0.624036,86300.0,86299.0,0.00024128]
[1743139423671,0.624036,86300.0,86299.0,0.00224128]
[1743139423918,0.7351057,86300.0,86299.0,0.00224128]
[1743139424270,0.7850057,86300.0,86299.0,0.00224128]
[1743139424474,0.7900057,86300.0,86299.0,0.00224128]
[1743139424745,0.678936,86300.0,86299.0,0.00224128]
[1743139425135,0.678936,86300.0,86299.0,0.00024128]
[1743139425539,0.678936,86300.0,86299.0,0.00224128]
[1743139426134,0.678936,86300.0,86299.0,0.00024128]
[1743139426363,0.79319364,86300.0,86299.0,0.00024128]
[1743139426562,0.79419364,86300.0,86299.0,0.00124128]
[1743139427217,0.79319364,86300.0,86299.0,0.00124128]
[1743139427631,0.79419364,86300.0,86299.0,0.00124128]
[1743139427990,0.79319364,86300.0,86299.0,0.00024128]
[1743139428458,1.21089364,86300.0,86299.0,2.8e-07]
[1743139428785,1.23363814,86300.0,86299.0,2.8e-07]
[1743139428988,0.625381,86284.0,86283.0,0.6018]
[1743139429171,0.790901,86284.0,86283.0,0.60193354]
[1743139430442,0.95835864,86284.0,86283.0,0.60393354]
[1743139431054,0.97020184,86284.0,86283.0,0.00213354]
[1743139431685,0.9883797,86284.0,86283.0,0.00513354]
[1743139432030,0.70360206,86284.0,86283.0,0.00513354]
[1743139432157,0.66040206,86284.0,86283.0,0.00213354]
[1743139432362,0.66040206,86284.0,86283.0,0.00013354]
[1743139432715,0.66040206,86284.0,86283.0,0.00113354]
[1743139433353,0.57840206,86284.0,86283.0,0.00113354]
[1743139433564,0.59992328,86284.0,86283.0,0.00113354]
[1743139434728,0.67003319,86284.0,86283.0,0.00113354]
[1743139436575,0.77434927,86284.0,86283.0,0.00113354]
[1743139437621,0.82124927,86284.0,86283.0,0.00113354]
[1743139437761,0.82124927,86284.0,86283.0,0.00013354]
[1743139437967,0.83942887,86284.0,86283.0,0.00013354]
[1743139438169,0.83942887,86284.0,86283.0,0.00113354]
[1743139438770,0.83942887,86284.0,86283.0,0.00130284]
[1743139439004,0.84042887,86284.0,86283.0,0.00030284]
[1743139439204,0.83942887,86284.0,86283.0,0.00030284]
[1743139439622,0.84142887,86284.0,86283.0,0.00030284]
[1743139439856,0.84142887,86284.0,86283.0,8.4e-07]
[1743139440351,1.00682887,86284.0,86283.0,8.4e-07]
[1743139440805,0.89701988,86284.0,86283.0,8.4e-07]
[1743139441808,0.93142684,86284.0,86283.0,8.4e-07]
[1743139442826,0.89701988,86284.0,86283.0,8.4e-07]
[1743139443165,0.627998,86278.0,86277.0,8.4e-07]
[1743139443377,0.79155564,86278.0,86277.0,8.4e-07]
[1743139443725,0.81307172,86278.0,86277.0,8.4e-07]
[1743139443930,0.97843172,86278.0,86277.0,8.4e-07]
[1743139444110,0.86417408,86278.0,86277.0,8.4e-07]
[1743139444718,0.89856201,86278.0,86277.0,8.4e-07]
[1743139445127,0.89956201,86278.0,86277.0,8.4e-07]
[1743139446109,0.90156201,86278.0,86277.0,8.4e-07]
[1743139446358,1.01581965,86278.0,86277.0,8.4e-07]
[1743139446749,1.43351965,86278.0,86277.0,8.4e-07]
[1743139447773,1.46262892,86278.0,86277.0,8.4e-07]
[1743139447916,1.4808098,86278.0,86277.0,8.4e-07]
[1743139449058,1.5058098,86278.0,86277.0,8.4e-07]
[1743139450283,1.47142187,86278.0,86277.0,8.4e-07]
[1743139451659,1.44642187,86278.0,86277.0,8.4e-07]
[1743139451860,1.47142187,86278.0,86277.0,8.4e-07]
[1743139452291,1.30305496,86278.0,86277.0,8.4e-07]
[1743139452498,0.83769496,86278.0,86277.0,8.4e-07]
[1743139452671,0.87407496,86278.0,86277.0,8.4e-07]
[1743139453085,0.90847274,86278.0,86277.0,8.4e-07]
[1743139453486,1.20847274,86278.0,86277.0,8.4e-07]
[1743139453921,1.20547274,86278.0,86277.0,8.4e-07]
[1743139454361,1.20647274,86278.0,86277.0,8.4e-07]
[1743139454749,1.18829186,86278.0,86277.0,8.4e-07]
[1743139455500,1.27139186,86278.0,86277.0,8.4e-07]
[1743139455706,1.31939186,86278.0,86277.0,8.4e-07]
[1743139456036,1.4336495,86278.0,86277.0,8.4e-07]
[1743139456637,1.4326495,86278.0,86277.0,8.4e-07]
[1743139456793,1.4346495,86278.0,86277.0,8.4e-07]
[1743139456989,1.4356495,86278.0,86277.0,8.4e-07]
[1743139457412,1.4346495,86278.0,86277.0,8.4e-07]
[1743139457816,1.4356495,86278.0,86277.0,8.4e-07]
[1743139458028,1.45383145,86278.0,86277.0,8.4e-07]
[1743139458221,1.41943367,86278.0,86277.0,8.4e-07]
[1743139458836,1.44854294,86278.0,86277.0,8.4e-07]
[1743139459147,0.543441,86263.0,86251.0,0.60192]
[1743139459756,0.65769864,86263.0,86251.0,0.60192]
[1743139459968,0.56162335,86263.0,86251.0,0.60192]
[1743139460720,0.58813943,86263.0,86251.0,0.60192]
[1743139461892,0.58813943,86263.0,86262.0,0.11442664]
[1743139463632,0.56662335,86263.0,86262.0,0.11442664]
[1743139464663,0.548441,86263.0,86262.0,0.11442664]
[1743139469255,0.56662285,86263.0,86262.0,0.11442664]
[1743139471124,0.68088049,86263.0,86262.0,0.11442664]
[1743139471365,0.68088049,86263.0,86262.0,0.000169]
[1743139472974,0.70245071,86263.0,86262.0,0.000169]
[1743139473577,0.68426886,86263.0,86262.0,0.000169]
[1743139473785,0.243471,86252.0,86251.0,0.60135574]
[1743139474009,0.243471,86252.0,86251.0,0.71574697]
[1743139474432,0.26504122,86252.0,86251.0,0.71574697]
[1743139475754,0.243471,86252.0,86251.0,0.71574697]
[1743139476451,0.25510168,86252.0,86251.0,0.71574697]
[1743139476954,0.25610168,86252.0,86251.0,0.71574697]
[1743139477911,0.27428425,86252.0,86251.0,0.71574697]
[1743139479381,0.26265357,86252.0,86251.0,0.71574697]
[1743139480950,0.2743399,86252.0,86251.0,0.71574697]
[1743139481351,0.26265357,86252.0,86251.0,0.71574697]
[1743139483114,0.27424252,86252.0,86251.0,0.71574697]
[1743139483730,0.26265357,86252.0,86251.0,0.71574697]
[1743139484717,0.244471,86252.0,86251.0,0.71574697]
[1743139489005,0.244471,86252.0,86251.0,0.71591627]
[1743139489169,0.34192437,86252.0,86251.0,0.71591627]
[1743139490352,0.34092437,86252.0,86251.0,0.71591627]
[1743139491230,0.28826484,86252.0,86251.0,0.71591627]
[1743139493499,0.26665371,86252.0,86251.0,0.71591627]
[1743139494645,0.248471,86252.0,86251.0,0.71591627]
[1743139499567,0.26665437,86252.0,86251.0,0.71591627]
[1743139500997,0.26665437,86252.0,86251.0,0.11456053]
[1743139502471,0.37733299,86252.0,86251.0,0.11456053]
[1743139502670,0.67767179,86252.0,86251.0,0.00030289]
[1743139502883,0.75817179,86252.0,86251.0,0.00030289]
[1743139503271,0.92277179,86252.0,86251.0,0.00030289]
[1743139504154,0.97097179,86252.0,86251.0,8.9e-07]
[1743139504702,0.673425,86233.0,86232.0,0.0001689]
[1743139504936,0.9076866,86233.0,86232.0,0.0001689]
[1743139506204,0.96375482,86233.0,86232.0,0.0001689]
[1743139506961,0.97234081,86233.0,86232.0,0.0001689]
[1743139507185,0.97234081,86233.0,86202.0,0.10333132]
[1743139507186,0.011597,86227.0,86226.0,8e-07]
[1743139507365,0.78620009,86227.0,86226.0,8e-07]
[1743139507748,0.67746,86221.0,86220.0,7e-07]
[1743139508545,0.69565219,86221.0,86220.0,7e-07]
[1743139509056,0.71724181,86221.0,86220.0,1e-07]
[1743139509890,1.13594181,86221.0,86220.0,1e-07]
[1743139510098,1.28513993,86221.0,86220.0,1e-07]
[1743139510514,1.26355031,86221.0,86220.0,1e-07]
[1743139511148,1.28697854,86221.0,86220.0,1e-07]
[1743139511838,1.28597854,86221.0,86220.0,1e-07]
[1743139512172,1.28697854,86221.0,86220.0,1e-07]
[1743139512597,1.31097854,86221.0,86220.0,1e-07]
[1743139512818,1.32951939,86221.0,86220.0,1e-07]
[1743139513019,1.32951939,86221.0,86192.0,0.60212]
[1743139513020,0.243613,86202.0,86192.0,0.60212]
[1743139513289,0.793733,86202.0,86201.0,0.00204454]
[1743139513638,0.840933,86202.0,86201.0,0.00204454]
[1743139513846,0.85912817,86202.0,86201.0,0.00204454]
[1743139514055,0.840933,86202.0,86201.0,0.00204454]
[1743139514235,0.95519064,86202.0,86201.0,0.00204454]
[1743139514995,0.95519064,86202.0,86201.0,5.4e-07]
[1743139515228,0.630127,86197.0,86196.0,7.4e-07]
[1743139515524,0.67922299,86197.0,86196.0,7.4e-07]
[1743139516778,0.69941996,86197.0,86196.0,7.4e-07]
[1743139516989,0.8166776,86197.0,86196.0,7.4e-07]
[1743139520066,1.2343776,86197.0,86196.0,7.4e-07]
[1743139524458,1.06602397,86197.0,86196.0,7.4e-07]
[1743139524660,1.212307,86197.0,86196.0,7.4e-07]
[1743139524874,1.212267,86197.0,86196.0,7.4e-07]
[1743139525556,1.047827,86197.0,86196.0,7.4e-07]
[1743139525761,1.212606,86197.0,86196.0,7.4e-07]
[1743139525974,1.32686364,86197.0,86196.0,7.4e-07]
[1743139526367,1.32186364,86197.0,86196.0,7.4e-07]
[1743139526673,1.32286364,86197.0,86196.0,7.4e-07]
[1743139527837,1.34106163,86197.0,86196.0,7.4e-07]
[1743139528076,0.98586399,86197.0,86196.0,7.4e-07]
[1743139528280,1.15030399,86197.0,86196.0,7.4e-07]
[1743139529270,1.15026399,86197.0,86196.0,7.4e-07]
[1743139529475,1.14926399,86197.0,86196.0,7.4e-07]
[1743139529775,1.15026399,86197.0,86196.0,7.4e-07]
[1743139529993,1.26452163,86197.0,86196.0,7.4e-07]
[1743139531876,1.33952163,86197.0,86196.0,7.4e-07]
[1743139533866,1.22526399,86197.0,86196.0,7.4e-07]
[1743139534453,1.207066,86197.0,86196.0,7.4e-07]
[1743139538020,1.22526337,86197.0,86196.0,7.4e-07]
[1743139546212,1.22426337,86197.0,86196.0,7.4e-07]
[1743139546782,1.22626337,86197.0,86196.0,7.4e-07]
[1743139546960,1.34152101,86197.0,86196.0,7.4e-07]
[1743139547458,1.32232364,86197.0,86196.0,7.4e-07]
[1743139547677,1.32332364,86197.0,86196.0,7.4e-07]
[1743139547930,1.209066,86197.0,86196.0,7.4e-07]
[1743139550183,1.22726313,86197.0,86196.0,7.4e-07]
[1743139554141,1.15194313,86197.0,86196.0,7.4e-07]
[1743139554615,1.133746,86197.0,86196.0,7.4e-07]
[1743139555973,1.131746,86197.0,86196.0,7.4e-07]
[1743139556358,1.133746,86197.0,86196.0,7.4e-07]
[1743139556563,1.132746,86197.0,86196.0,7.4e-07]
[1743139556766,1.133706,86197.0,86196.0,7.4e-07]
[1743139557107,1.131706,86197.0,86196.0,7.4e-07]
[1743139557308,1.130706,86197.0,86196.0,7.4e-07]
[1743139557572,1.132706,86197.0,86196.0,7.4e-07]
[1743139558004,1.1509024,86197.0,86196.0,7.4e-07]
[1743139558401,1.26516004,86197.0,86196.0,7.4e-07]
[1743139558941,1.1509024,86197.0,86196.0,7.4e-07]
[1743139561052,0.7332024,86197.0,86196.0,7.4e-07]
[1743139563635,0.715006,86197.0,86196.0,7.4e-07]
[1743139564245,0.550966,86197.0,86196.0,7.4e-07]
[1743139564451,0.714886,86197.0,86196.0,7.4e-07]
[1743139564670,0.250966,86197.0,86196.0,0.18455838]
[1743139565451,0.250966,86197.0,86196.0,0.11425838]
[1743139566051,0.248966,86197.0,86196.0,0.11425838]
[1743139566503,0.249966,86197.0,86196.0,0.11425838]
[1743139566857,0.248966,86197.0,86196.0,0.11425838]
[1743139568074,0.26716078,86197.0,86196.0,0.11425838]
[1743139574667,0.248966,86197.0,86196.0,0.11425838]
[1743139575826,0.34696933,86197.0,86196.0,0.11425838]
[1743139576033,0.34696933,86197.0,86196.0,7.4e-07]
[1743139576269,0.64696933,86197.0,86196.0,7.4e-07]
[1743139577737,0.66516597,86197.0,86196.0,7.4e-07]
[1743139578578,0.74676597,86197.0,86196.0,7.4e-07]
[1743139581290,0.64876264,86197.0,86196.0,7.4e-07]
[1743139584740,0.630566,86197.0,86196.0,7.4e-07]
[1743139588049,0.648763,86197.0,86196.0,7.4e-07]
[1743139589305,0.812323,86197.0,86196.0,7.4e-07]
[1743139594389,0.794126,86197.0,86196.0,7.4e-07]
[1743139597891,0.794006,86197.0,86196.0,7.4e-07]
[1743139598784,0.81220328,86197.0,86196.0,7.4e-07]
[1743139599909,0.91111062,86197.0,86196.0,7.4e-07]
[1743139603178,0.81220328,86197.0,86196.0,7.4e-07]
[1743139603890,0.794006,86197.0,86196.0,7.4e-07]
[1743139608145,0.81220305,86197.0,86196.0,7.4e-07]
[1743139609805,0.64876305,86197.0,86196.0,7.4e-07]
[1743139610017,0.73044305,86197.0,86196.0,0.11425838]
[1743139610147,0.26216305,86197.0,86196.0,0.11425838]
[1743139610360,0.26716305,86197.0,86196.0,0.11425838]
[1743139610596,0.26216305,86197.0,86196.0,0.11425838]
[1743139611484,0.01853605,86197.0,86196.0,0.18455838]
[1743139612076,0.26216305,86197.0,86196.0,0.18555838]
[1743139612863,0.26216305,86197.0,86196.0,0.11425838]
[1743139613076,0.26316305,86197.0,86196.0,0.11525838]
[1743139613637,0.26816305,86197.0,86196.0,0.11525838]
[1743139614039,0.26916305,86197.0,86196.0,0.11525838]
[1743139614211,0.26816305,86197.0,86196.0,0.11525838]
[1743139614459,0.26716305,86197.0,86196.0,0.11425838]
[1743139614792,0.250966,86197.0,86196.0,0.11525838]
[1743139614973,0.249966,86197.0,86196.0,0.11525838]
[1743139615326,0.249966,86197.0,86196.0,0.11425838]
[1743139615327,0.248966,86197.0,86196.0,0.11425838]
[1743139615884,0.249966,86197.0,86196.0,0.11525838]
[1743139617076,0.250966,86197.0,86196.0,0.11525838]
[1743139619494,0.26916134,86197.0,86196.0,0.11525838]
[1743139622453,0.29829509,86197.0,86196.0,0.11525838]
[1743139623072,0.26916134,86197.0,86196.0,0.11525838]
[1743139623718,0.26816134,86197.0,86196.0,0.11525838]
[1743139624021,0.26716134,86197.0,86196.0,0.11425838]
[1743139624226,0.26816134,86197.0,86196.0,0.11525838]
[1743139624645,0.248966,86197.0,86196.0,0.11425838]
[1743139625247,0.3547465,86197.0,86196.0,0.11525838]
[1743139625611,0.249966,86197.0,86196.0,0.11525838]
[1743139626892,0.248966,86197.0,86196.0,0.11425838]
[1743139627455,0.249966,86197.0,86196.0,0.11525838]
[1743139627867,0.26816146,86197.0,86196.0,0.00100074]
[1743139634154,0.249966,86197.0,86196.0,0.00100074]
[1743139635976,0.412846,86197.0,86196.0,0.00100074]
[1743139636880,0.43449316,86197.0,86196.0,0.00100074]
[1743139638174,0.51729316,86197.0,86196.0,0.00100074]
[1743139638600,0.53548913,86197.0,86196.0,0.00100074]
[1743139639437,0.53544913,86197.0,86196.0,0.11525838]
[1743139639651,0.37260913,86197.0,86196.0,0.11525838]
[1743139639848,0.28980913,86197.0,86196.0,0.11525838]
[1743139640051,0.28480913,86197.0,86196.0,0.11525838]
[1743139640224,0.28380913,86197.0,86196.0,0.11425838]
[1743139640760,0.28380913,86197.0,86196.0,0.11525838]
[1743139641250,0.28380913,86197.0,86196.0,0.11425838]
[1743139641387,0.28380913,86197.0,86196.0,0.11525838]
[1743139642014,0.04018213,86197.0,86196.0,0.11525838]
[1743139642243,0.01853497,86197.0,86196.0,0.11525838]
[1743139642456,0.01853497,86197.0,86196.0,0.42918838]
[1743139643077,0.01853497,86197.0,86196.0,0.46544588]
[1743139643343,0.01853497,86197.0,86196.0,0.46444588]
[1743139643618,0.01953497,86197.0,86196.0,0.44772923]
[1743139643915,0.001339,86197.0,86196.0,0.44772923]
[1743139644119,0.001339,86197.0,86196.0,0.44272923]
[1743139644329,0.001339,86197.0,86196.0,0.49075605]
[1743139644528,0.002339,86197.0,86196.0,0.45950412]
[1743139644760,0.002339,86197.0,86196.0,0.49575098]
[1743139647383,0.002339,86197.0,86196.0,0.45950412]
[1743139647590,0.0205303,86197.0,86196.0,0.45950412]
[1743139652160,0.2641573,86197.0,86196.0,0.11925838]
[1743139652368,0.2525563,86197.0,86196.0,0.11925838]
[1743139652568,0.2641573,86197.0,86196.0,0.11925838]
[1743139653373,0.2621573,86197.0,86196.0,0.11425838]
[1743139653585,0.2631573,86197.0,86196.0,0.11925838]
[1743139653742,0.2641573,86197.0,86196.0,0.12025838]
[1743139654263,0.2631573,86197.0,86196.0,0.11525838]
[1743139654424,0.2691573,86197.0,86196.0,0.12025838]
[1743139654645,0.249966,86197.0,86196.0,0.11925838]
[1743139655063,0.250966,86197.0,86196.0,0.12025838]
[1743139655656,0.249966,86197.0,86196.0,0.11525838]
[1743139656035,0.249966,86197.0,86196.0,0.12025838]
[1743139656597,0.248966,86197.0,86196.0,0.11425838]
[1743139656798,0.243966,86197.0,86196.0,0.12025838]
[1743139657733,0.01194,86197.0,86196.0,0.12025838]
[1743139658823,0.000339,86197.0,86196.0,0.12025838]
[1743139659259,0.01853335,86197.0,86196.0,0.13185938]
[1743139659731,0.01853335,86197.0,86196.0,0.12025838]
[1743139660381,0.01853335,86197.0,86196.0,0.13185938]
[1743139661204,0.01853335,86197.0,86196.0,0.12025838]
[1743139662916,0.01853335,86197.0,86196.0,0.14640023]
[1743139663667,0.01853335,86197.0,86196.0,0.14040023]
[1743139663897,0.01953335,86197.0,86196.0,0.21570023]
[1743139664099,0.01953335,86197.0,86196.0,0.25289242]
[1743139664100,0.02053335,86197.0,86196.0,0.25289242]
[1743139664273,0.002339,86197.0,86196.0,0.25289242]
[1743139668114,1.002339,86197.0,86196.0,0.25289242]
[1743139670421,1.002339,86197.0,86196.0,0.18259242]
[1743139673174,0.962339,86197.0,86196.0,0.14640023]
[1743139673445,0.962339,86197.0,86196.0,0.1825835]
[1743139676803,0.9626774,86197.0,86196.0,0.1825835]
[1743139677917,0.9626774,86197.0,86196.0,0.2979835]
[1743139678124,0.9626774,86197.0,86196.0,1.6514945]
[1743139678259,0.92781762,86197.0,86196.0,1.3841105]
[1743139678659,0.92781762,86197.0,86196.0,1.3791105]
[1743139679119,0.92781762,86197.0,86196.0,1.3851105]
[1743139679618,0.92781762,86197.0,86196.0,0.8426885]
[1743139679821,0.92781762,86197.0,86196.0,0.7812925]
[1743139680435,0.92781762,86197.0,86196.0,0.7802925]
[1743139680602,0.92781762,86197.0,86196.0,0.6383935]
[1743139680803,0.92781762,86197.0,86196.0,0.6443935]
[1743139683300,0.92781762,86197.0,86196.0,0.5992935]
[1743139683902,0.92781762,86197.0,86196.0,0.4885835]
[1743139687984,0.94600837,86197.0,86196.0,0.4885835]
[1743139690624,0.94600837,86197.0,86196.0,0.1885835]
[1743139694647,0.92781762,86197.0,86196.0,0.1885835]
[1743139697793,1.17144462,86197.0,86196.0,0.1769825]
[1743139697959,0.97741762,86197.0,86196.0,0.16244165]
[1743139698162,0.97741762,86197.0,86196.0,0.17404265]
[1743139698721,0.97741762,86197.0,86196.0,0.1825835]
[1743139699449,0.99560984,86197.0,86196.0,0.1825835]
[1743139700292,0.99560984,86197.0,86196.0,0.15644165]
[1743139700494,1.00721084,86197.0,86196.0,0.12025838]
[1743139700655,1.00721084,86197.0,86196.0,0.12625838]
[1743139700854,1.08751084,86197.0,86196.0,0.12625838]
[1743139701276,1.09251084,86197.0,86196.0,0.12625838]
[1743139702210,1.09251084,86197.0,86196.0,0.12025838]
[1743139702385,1.09251084,86197.0,86196.0,0.11425838]
[1743139702593,1.09251084,86197.0,86196.0,0.12025838]
[1743139703754,1.09251084,86197.0,86196.0,0.12425838]
[1743139704627,1.23619862,86197.0,86196.0,0.12425838]
[1743139705044,1.07431862,86197.0,86196.0,0.12425838]
[1743139705316,1.23619862,86197.0,86196.0,0.12425838]
[1743139709541,1.25439275,86197.0,86196.0,0.12425838]
[1743139710285,1.25439275,86197.0,86196.0,0.11825838]
[1743139710691,1.55439275,86197.0,86196.0,0.11825838]
[1743139710895,1.55439275,86197.0,86196.0,7.4e-07]
[1743139711898,1.55439275,86197.0,86196.0,0.00800074]
[1743139712109,1.55439275,86197.0,86196.0,0.00500074]
[1743139712310,1.55439275,86197.0,86196.0,7.4e-07]
[1743139712685,1.55439275,86197.0,86196.0,0.00200074]
[1743139713628,1.55439275,86197.0,86196.0,0.00300074]
[1743139713800,1.53619862,86197.0,86196.0,0.00300074]
[1743139714256,1.53607862,86197.0,86196.0,0.00300074]
[1743139715341,1.37431862,86197.0,86196.0,0.00300074]
[1743139715659,1.37431862,86197.0,86196.0,0.11725838]
[1743139715814,1.53607862,86197.0,86196.0,0.11725838]
[1743139718107,1.55427332,86197.0,86196.0,0.11725838]
[1743139721178,1.6406517,86197.0,86196.0,0.11725838]
[1743139721352,1.55427332,86197.0,86196.0,0.11725838]
[1743139724597,1.53607862,86197.0,86196.0,0.11725838]
[1743139727460,1.53607862,86197.0,86196.0,0.00300074]
[1743139734070,1.55904049,86197.0,86196.0,0.00300074]
[1743139734256,1.55904049,86197.0,86196.0,0.00200074]
[1743139734474,1.67329813,86197.0,86196.0,0.00300074]
[1743139734796,1.67329813,86197.0,86196.0,0.00100074]
[1743139735179,1.67329813,86197.0,86196.0,0.00300074]
[1743139735887,1.55904049,86197.0,86196.0,0.00300074]
[1743139738208,1.57723677,86197.0,86196.0,0.00300074]
[1743139741114,1.57723677,86197.0,86196.0,0.00100074]
[1743139741365,1.57723677,86197.0,86196.0,0.00200074]
[1743139741942,1.57723677,86197.0,86196.0,7.4e-07]
[1743139742143,1.7010371,86197.0,86196.0,7.4e-07]
[1743139743526,1.58677946,86197.0,86196.0,7.4e-07]
[1743139744607,1.56858318,86197.0,86196.0,7.4e-07]
[1743139748050,1.58677969,86197.0,86196.0,7.4e-07]
[1743139748250,0.61873,86196.0,86195.0,9.2e-07]
[1743139748478,0.669944,86191.0,86190.0,1.2e-07]
[1743139749557,1.087644,86191.0,86190.0,1.2e-07]
[1743139749879,1.112644,86191.0,86190.0,1.2e-07]
[1743139750081,1.087644,86191.0,86190.0,1.2e-07]
[1743139750281,1.20190164,86191.0,86190.0,1.2e-07]
[1743139750489,0.675687,86176.0,86175.0,0.000169]
[1743139750719,0.836967,86176.0,86175.0,0.00021354]
[1743139750890,0.85516729,86176.0,86175.0,0.00021354]
[1743139751797,0.87680107,86176.0,86175.0,0.00121354]
[1743139752198,0.87680107,86176.0,86175.0,0.00021354]
[1743139752635,0.91947162,86176.0,86175.0,0.00121354]
[1743139752812,1.82530784,86176.0,86175.0,0.00121354]
[1743139754645,1.80710755,86176.0,86175.0,0.00121354]
[1743139755028,1.82870947,86176.0,86175.0,0.00121354]
[1743139756176,1.80710755,86176.0,86175.0,0.00121354]
[1743139757407,1.80710755,86176.0,86175.0,0.00021354]
[1743139757604,2.24300821,86176.0,86175.0,0.00021354]
[1743139758360,2.26592004,86176.0,86175.0,0.00021354]
[1743139759526,2.28752146,86176.0,86175.0,0.00021354]
[1743139760799,2.08357091,86176.0,86175.0,0.00021354]
[1743139760918,2.24473091,86176.0,86175.0,0.00021354]
[1743139761735,2.22312949,86176.0,86175.0,0.00021354]
[1743139764559,2.22308949,86176.0,86175.0,0.00021354]
[1743139764765,2.134977,86176.0,86175.0,0.00021354]
[1743139764939,1.973857,86176.0,86175.0,0.00021354]
[1743139765121,2.134977,86176.0,86175.0,0.00021354]
[1743139766122,2.054977,86176.0,86175.0,0.00021354]
[1743139766405,2.16923464,86176.0,86175.0,0.00021354]
[1743139766909,2.16923464,86176.0,86175.0,0.00121354]
[1743139767809,2.18743506,86176.0,86175.0,0.00121354]
[1743139769182,1.76973506,86176.0,86175.0,0.00121354]
[1743139773768,1.65547742,86176.0,86175.0,0.00121354]
[1743139774605,1.637277,86176.0,86175.0,0.00121354]
[1743139777000,1.713977,86176.0,86175.0,0.00121354]
[1743139777212,1.7356052,86176.0,86175.0,0.00121354]
[1743139777889,1.75380567,86176.0,86175.0,0.00121354]
[1743139778251,1.84643511,86176.0,86175.0,0.00121354]
[1743139779245,1.89483511,86176.0,86175.0,0.00121354]
[1743139780204,0.548697,86172.0,86158.0,0.0001693]
[1743139780406,0.629997,86172.0,86158.0,0.0001693]
[1743139780625,0.74425464,86172.0,86158.0,0.0001693]
[1743139781356,1.67172464,86172.0,86158.0,0.0001693]
[1743139781492,1.69337845,86172.0,86158.0,0.0001693]
[1743139781896,1.69337845,86172.0,86171.0,1e-06]
[1743139784065,1.74167845,86172.0,86171.0,1e-06]
[1743139784276,1.74167845,86172.0,86157.0,5e-07]
[1743139784277,0.305,86158.0,86157.0,5e-07]
[1743139784478,0.558086,86158.0,86157.0,0.00013407]
[1743139785342,0.7027449,86158.0,86157.0,0.00013407]
[1743139785514,1.13498575,86158.0,86157.0,0.00013407]
[1743139785992,2.06245575,86158.0,86157.0,0.00013407]
[1743139786210,2.17671339,86158.0,86157.0,0.00013407]
[1743139786680,1.83985401,86158.0,86157.0,0.00013407]
[1743139786931,2.00669401,86158.0,86157.0,0.00013407]
[1743139787129,1.8830349,86158.0,86157.0,0.00013407]
[1743139787369,0.548772,86146.0,86133.0,0.0001694]
[1743139787573,1.092572,86146.0,86133.0,0.0001694]
[1743139787773,1.20682964,86146.0,86133.0,0.0001694]
[1743139788130,0.49476315,86130.0,86117.0,0.0676388]
[1743139788333,0.01161,86127.0,86118.0,0.11425764]
[1743139788550,0.243825,86127.0,86118.0,0.11425764]
[1743139788753,0.3,86128.0,86118.0,0.11425764]
[1743139788956,0.005,86119.0,86118.0,0.11425764]
[1743139789486,0.00513312,86119.0,86118.0,0.12025764]
[1743139790067,0.00513312,86119.0,86118.0,0.11425764]
[1743139790280,0.93260312,86119.0,86118.0,0.11425764]
[1743139790448,0.93360312,86119.0,86118.0,0.11825764]
[1743139790818,0.548859,86115.0,86114.0,0.0001694]
[1743139791016,0.59400634,86115.0,86114.0,0.0001694]
[1743139791417,0.305,86115.0,86114.0,0.0001694]
[1743139791646,0.33482272,86115.0,86114.0,0.0001694]
[1743139791861,1.26229272,86115.0,86114.0,0.0001694]
[1743139792056,1.26229272,86115.0,86114.0,0.11442704]
[1743139792272,1.31830369,86115.0,86114.0,0.11442704]
[1743139792627,1.31830369,86115.0,86114.0,0.12042704]
[1743139792832,1.31930369,86115.0,86114.0,0.12042704]
[1743139793036,1.30769169,86115.0,86114.0,0.11442704]
[1743139793578,1.31930369,86115.0,86114.0,0.11742704]
[1743139793720,1.26229272,86115.0,86114.0,0.11742704]
[1743139794501,1.25068072,86115.0,86114.0,0.11742704]
[1743139794749,1.23247,86115.0,86114.0,0.11742704]
[1743139795544,1.244082,86115.0,86114.0,0.11742704]
[1743139795881,1.23247,86115.0,86114.0,0.11742704]
[1743139796112,1.244082,86115.0,86114.0,0.11742704]
[1743139797696,1.23247,86115.0,86114.0,0.11742704]
[1743139798377,1.22747,86115.0,86114.0,0.11742704]
[1743139798617,0.92747,86115.0,86114.0,0.11742704]
[1743139798935,0.94568013,86115.0,86114.0,0.11742704]
[1743139799091,0.94568013,86115.0,86114.0,0.12903904]
[1743139799299,0.94568013,86115.0,86114.0,0.16272704]
[1743139800232,0.94568013,86115.0,86114.0,0.15972704]
[1743139800434,0.94568013,86115.0,86114.0,0.17533904]
[1743139801013,0.94568013,86115.0,86114.0,0.16372704]
[1743139801229,0.94568013,86115.0,86114.0,0.17826789]
[1743139801749,0.94568013,86115.0,86114.0,0.17426789]
[1743139802089,0.94568013,86115.0,86114.0,0.17826789]
[1743139802497,0.94568013,86115.0,86114.0,0.20099776]
[1743139802898,0.94568013,86115.0,86114.0,0.21260976]
[1743139803121,0.94568013,86115.0,86114.0,0.20099776]
[1743139803563,0.94568013,86115.0,86114.0,0.11842704]
[1743139804055,0.94568013,86115.0,86114.0,0.72142704]
[1743139804846,0.92847,86115.0,86114.0,0.72142704]
[1743139805077,0.93347,86115.0,86114.0,0.72142704]
[1743139805275,0.93347,86115.0,86114.0,0.72742704]
[1743139805508,0.92847,86115.0,86114.0,0.72742704]
[1743139805716,0.93347,86115.0,86114.0,0.72142704]
[1743139806109,0.93247,86115.0,86114.0,0.71742704]
[1743139806319,1.23365169,86115.0,86114.0,0.72342704]
[1743139806516,1.557229,86115.0,86114.0,0.72342704]
[1743139806717,1.557229,86115.0,86114.0,0.72742704]
[1743139806916,1.557229,86115.0,86114.0,0.72142704]
[1743139807348,1.557229,86115.0,86114.0,0.6071694]
[1743139807542,1.31337,86115.0,86114.0,0.6031694]
[1743139807923,1.22747,86115.0,86114.0,0.71742704]
[1743139808096,1.2506812,86115.0,86114.0,0.71742704]
[1743139808324,1.4945402,86115.0,86114.0,0.71742704]
[1743139808522,1.4945402,86115.0,86114.0,0.71942704]
[1743139809079,1.4945402,86115.0,86114.0,0.72442704]
[1743139809447,1.4945402,86115.0,86114.0,0.6051694]
[1743139809984,1.60879784,86115.0,86114.0,0.6081694]